[Event "Late-Titled-Tuesday-Blitz-June-04-2024"]
[Site "Chess.com"]
[Date "2024.06.04"]
[Round "10"]
[White "The_Straightforward_Rook"]
[Black "rdarruda"]
[Result "1-0"]
[WhiteElo "2546"]
[BlackElo "2510"]
[TimeControl "180+1"]
[EndTime "15:55:18 PDT"]
[Termination "The_Straightforward_Rook won by resignation"]

1. d4 {[%clk 0:02:57.7]} 1... Nf6 {[%clk 0:02:53.2]} 2. c4 {[%clk 0:02:57.2]}
2... e5 {[%clk 0:02:52.1]} 3. dxe5 {[%clk 0:02:56.9]} 3... Ne4 {[%clk
0:02:52.3]} 4. Nf3 {[%clk 0:02:53.4]} 4... Nc6 {[%clk 0:02:52.1]} 5. Nbd2 {[%clk
0:02:48.4]} 5... Nc5 {[%clk 0:02:50.6]} 6. g3 {[%clk 0:02:42]} 6... Qe7 {[%clk
0:02:50]} 7. Bg2 {[%clk 0:02:42.4]} 7... Nxe5 {[%clk 0:02:50]} 8. O-O {[%clk
0:02:40.5]} 8... d6 {[%clk 0:02:49.2]} 9. b4 {[%clk 0:02:37.5]} 9... Ncd7 {[%clk
0:02:44.5]} 10. Bb2 {[%clk 0:02:36.5]} 10... g6 {[%clk 0:02:40.8]} 11. Nxe5
{[%clk 0:02:35.5]} 11... dxe5 {[%clk 0:02:40.6]} 12. c5 {[%clk 0:02:24.9]} 12...
Bg7 {[%clk 0:02:36.8]} 13. Nc4 {[%clk 0:02:22.3]} 13... O-O {[%clk 0:02:34.4]}
14. a3 {[%clk 0:02:09.9]} 14... c6 {[%clk 0:02:24.5]} 15. Nd6 {[%clk 0:02:08]}
15... Nf6 {[%clk 0:02:24.1]} 16. e3 {[%clk 0:01:59.2]} 16... Rb8 {[%clk
0:02:13.7]} 17. h3 {[%clk 0:01:53.8]} 17... Bd7 {[%clk 0:02:12.7]} 18. Qe2
{[%clk 0:01:52.7]} 18... Rfd8 {[%clk 0:02:12.1]} 19. Rfd1 {[%clk 0:01:50]} 19...
Ne8 {[%clk 0:02:09.9]} 20. Nc4 {[%clk 0:01:44.6]} 20... f6 {[%clk 0:02:05.7]}
21. Rd2 {[%clk 0:01:41.8]} 21... Be6 {[%clk 0:02:05.1]} 22. Rad1 {[%clk
0:01:42.4]} 22... Rxd2 {[%clk 0:01:45.7]} 23. Rxd2 {[%clk 0:01:39.4]} 23... Rd8
{[%clk 0:01:44.6]} 24. Na5 {[%clk 0:01:31.7]} 24... Rxd2 {[%clk 0:01:43.3]} 25.
Qxd2 {[%clk 0:01:31.4]} 25... Qc7 {[%clk 0:01:37]} 26. h4 {[%clk 0:01:21.8]}
26... Bf8 {[%clk 0:01:35.6]} 27. Qd1 {[%clk 0:01:10.9]} 27... Be7 {[%clk
0:01:33.3]} 28. h5 {[%clk 0:01:09.4]} 28... Ng7 {[%clk 0:01:29.9]} 29. hxg6
{[%clk 0:01:08]} 29... hxg6 {[%clk 0:01:30.8]} 30. f4 {[%clk 0:00:56.4]} 30...
exf4 {[%clk 0:01:27.4]} 31. gxf4 {[%clk 0:00:53.5]} 31... Kf7 {[%clk 0:01:27.3]}
32. Qd4 {[%clk 0:00:51.5]} 32... Nf5 {[%clk 0:01:24.5]} 33. Qd3 {[%clk
0:00:47.2]} 33... Nh4 {[%clk 0:01:20.2]} 34. Bh1 {[%clk 0:00:33.4]} 34... b6
{[%clk 0:01:12.5]} 35. cxb6 {[%clk 0:00:31.4]} 35... Qxb6 {[%clk 0:01:02.4]} 36.
Nxc6 {[%clk 0:00:30.3]} 36... Nf5 {[%clk 0:00:58.4]} 37. Nd4 {[%clk 0:00:29.5]}
37... Nxd4 {[%clk 0:00:54]} 38. Bxd4 {[%clk 0:00:28.7]} 38... Qc7 {[%clk
0:00:54.2]} 39. Be4 {[%clk 0:00:27.3]} 39... Qc1+ {[%clk 0:00:53.2]} 40. Kh2
{[%clk 0:00:26]} 40... f5 {[%clk 0:00:52.9]} 41. Bg2 {[%clk 0:00:25.7]} 41...
Qc7 {[%clk 0:00:40.5]} 42. Be5 {[%clk 0:00:22.8]} 42... Qc1 {[%clk 0:00:37.6]}
43. Bd4 {[%clk 0:00:20.9]} 43... Qc7 {[%clk 0:00:36.9]} 44. Bb2 {[%clk
0:00:20.8]} 44... Qb6 {[%clk 0:00:22.3]} 45. Bc3 {[%clk 0:00:20.2]} 45... Qc7
{[%clk 0:00:21.8]} 46. Bb2 {[%clk 0:00:19.3]} 46... Qb6 {[%clk 0:00:21.8]} 47.
Qc3 {[%clk 0:00:19.8]} 47... Qd6 {[%clk 0:00:17.5]} 48. Qg7+ {[%clk 0:00:17.5]}
48... Ke8 {[%clk 0:00:18.4]} 49. Qh8+ {[%clk 0:00:17.7]} 49... Kd7 {[%clk
0:00:19.3]} 50. Qd4 {[%clk 0:00:18.2]} 50... Qxd4 {[%clk 0:00:18.6]} 51. Bxd4
{[%clk 0:00:19.1]} 51... a6 {[%clk 0:00:18.6]} 52. Bf1 {[%clk 0:00:19.7]} 52...
a5 {[%clk 0:00:17.4]} 53. bxa5 {[%clk 0:00:19.7]} 53... Bxa3 {[%clk 0:00:17.5]}
54. a6 {[%clk 0:00:19.8]} 54... Bd5 {[%clk 0:00:17.1]} 55. a7 {[%clk 0:00:19.3]}
55... Kc7 {[%clk 0:00:16.7]} 56. Bg2 {[%clk 0:00:19.8]} 56... Bxg2 {[%clk
0:00:15.2]} 57. Kxg2 {[%clk 0:00:20.7]} 57... Kb7 {[%clk 0:00:15.5]} 58. Kg3
{[%clk 0:00:21.1]} 58... Bc1 {[%clk 0:00:14]} 59. Kh4 {[%clk 0:00:21]} 59... Ba3
{[%clk 0:00:13.4]} 60. Kg5 {[%clk 0:00:21.3]} 1-0

[Event "Late-Titled-Tuesday-Blitz-June-04-2024"]
[Site "Chess.com"]
[Date "2024.06.04"]
[Round "10"]
[White "StellarChess"]
[Black "CarlosjPineror"]
[Result "1-0"]
[WhiteElo "2551"]
[BlackElo "2671"]
[TimeControl "180+1"]
[EndTime "15:55:19 PDT"]
[Termination "StellarChess won by resignation"]

1. d4 {[%clk 0:03:00.9]} 1... Nf6 {[%clk 0:02:55.3]} 2. Bg5 {[%clk 0:03:00.5]}
2... d5 {[%clk 0:02:54.8]} 3. Bxf6 {[%clk 0:03:00.9]} 3... gxf6 {[%clk
0:02:55.6]} 4. e3 {[%clk 0:03:01.3]} 4... c5 {[%clk 0:02:56.2]} 5. dxc5 {[%clk
0:02:59.2]} 5... Qa5+ {[%clk 0:02:55.1]} 6. Nc3 {[%clk 0:02:54]} 6... e6 {[%clk
0:02:52]} 7. Bb5+ {[%clk 0:02:49.5]} 7... Nc6 {[%clk 0:02:50.5]} 8. a3 {[%clk
0:02:47.2]} 8... Bg7 {[%clk 0:02:34]} 9. b4 {[%clk 0:02:38]} 9... Qc7 {[%clk
0:02:31.1]} 10. Nge2 {[%clk 0:02:37.7]} 10... a6 {[%clk 0:02:30.6]} 11. Ba4
{[%clk 0:02:26.2]} 11... O-O {[%clk 0:02:29.8]} 12. O-O {[%clk 0:02:24.7]} 12...
f5 {[%clk 0:02:29.4]} 13. Rb1 {[%clk 0:02:22]} 13... Ne5 {[%clk 0:02:26.5]} 14.
Bb3 {[%clk 0:02:14]} 14... Bd7 {[%clk 0:02:23.5]} 15. h3 {[%clk 0:02:11.7]}
15... Rfc8 {[%clk 0:02:20.8]} 16. Nd4 {[%clk 0:02:08.3]} 16... b6 {[%clk
0:02:19.8]} 17. cxb6 {[%clk 0:01:48]} 17... Qxb6 {[%clk 0:02:17.4]} 18. Nce2
{[%clk 0:01:43.3]} 18... Bb5 {[%clk 0:02:14.6]} 19. Nxb5 {[%clk 0:01:39.3]}
19... axb5 {[%clk 0:02:15.5]} 20. Qc1 {[%clk 0:01:14.2]} 20... Nc4 {[%clk
0:02:14.4]} 21. Bxc4 {[%clk 0:01:13.1]} 21... Rxc4 {[%clk 0:02:15.3]} 22. Nf4
{[%clk 0:01:07]} 22... Rac8 {[%clk 0:02:14.4]} 23. Nh5 {[%clk 0:01:04.6]} 23...
Rxc2 {[%clk 0:02:06.1]} 24. Qd1 {[%clk 0:01:04.4]} 24... Be5 {[%clk 0:02:00.2]}
25. Qf3 {[%clk 0:00:58]} 25... Kf8 {[%clk 0:01:48.8]} 26. Kh1 {[%clk 0:00:57.7]}
26... Ke7 {[%clk 0:01:46.3]} 27. Nf4 {[%clk 0:00:48.9]} 27... Qc7 {[%clk
0:01:25.5]} 28. Nd3 {[%clk 0:00:38.3]} 28... Qc3 {[%clk 0:01:13]} 29. Nc5 {[%clk
0:00:33.5]} 29... Bd6 {[%clk 0:01:00]} 30. Qh5 {[%clk 0:00:30.1]} 30... Bxc5
{[%clk 0:00:57.4]} 31. bxc5 {[%clk 0:00:31]} 31... Rxc5 {[%clk 0:00:47.7]} 32.
Qxh7 {[%clk 0:00:30.8]} 32... Qf6 {[%clk 0:00:37.4]} 33. a4 {[%clk 0:00:28.7]}
33... Rc8 {[%clk 0:00:27.6]} 34. Qh5 {[%clk 0:00:21.1]} 34... bxa4 {[%clk
0:00:25.6]} 35. Rb7+ {[%clk 0:00:21]} 35... R2c7 {[%clk 0:00:26.1]} 36. Rfb1
{[%clk 0:00:20.8]} 36... Kd7 {[%clk 0:00:19.8]} 37. Qe2 {[%clk 0:00:19]} 37...
Qc3 {[%clk 0:00:17.6]} 38. Qb5+ {[%clk 0:00:18]} 38... Ke7 {[%clk 0:00:17.9]}
39. Qxa4 {[%clk 0:00:17.1]} 39... Kf6 {[%clk 0:00:17]} 40. Qh4+ {[%clk
0:00:17.1]} 40... Kg7 {[%clk 0:00:15]} 41. Qg5+ {[%clk 0:00:16.6]} 41... Kf8
{[%clk 0:00:14.2]} 42. Rxc7 {[%clk 0:00:16.1]} 42... Qxc7 {[%clk 0:00:14.7]} 43.
Rb4 {[%clk 0:00:14.3]} 43... Qc1+ {[%clk 0:00:11.9]} 44. Kh2 {[%clk 0:00:14.4]}
44... Qc7+ {[%clk 0:00:12.7]} 45. g3 {[%clk 0:00:13.4]} 45... Qe7 {[%clk
0:00:05.2]} 46. Qh6+ {[%clk 0:00:13.6]} 46... Ke8 {[%clk 0:00:05.6]} 47. Rb2
{[%clk 0:00:12.2]} 47... Kd7 {[%clk 0:00:04.3]} 48. Qf4 {[%clk 0:00:12.5]} 48...
Rc7 {[%clk 0:00:04.4]} 49. Rb8 {[%clk 0:00:12.5]} 49... Qd6 {[%clk 0:00:04.3]}
50. Rd8+ {[%clk 0:00:12.3]} 50... Kxd8 {[%clk 0:00:04.5]} 51. Qxd6+ {[%clk
0:00:12.8]} 51... Kc8 {[%clk 0:00:05.2]} 52. Qf8+ {[%clk 0:00:13.2]} 52... Kb7
{[%clk 0:00:05.3]} 53. h4 {[%clk 0:00:13.9]} 1-0

[Event "Late-Titled-Tuesday-Blitz-June-04-2024"]
[Site "Chess.com"]
[Date "2024.06.04"]
[Round "10"]
[White "denizozen"]
[Black "cassoulet"]
[Result "1-0"]
[WhiteElo "2944"]
[BlackElo "2771"]
[TimeControl "180+1"]
[EndTime "15:55:21 PDT"]
[Termination "denizozen won by resignation"]

1. e4 {[%clk 0:03:00.9]} 1... c5 {[%clk 0:02:59.7]} 2. Nf3 {[%clk 0:03:01.3]}
2... e6 {[%clk 0:03:00.2]} 3. d4 {[%clk 0:03:01.9]} 3... cxd4 {[%clk 0:03:01.1]}
4. Bg5 {[%clk 0:03:02.3]} 4... Ne7 {[%clk 0:02:55.1]} 5. Qxd4 {[%clk 0:02:59.5]}
5... Nbc6 {[%clk 0:02:54.6]} 6. Qd2 {[%clk 0:02:56.9]} 6... h6 {[%clk
0:02:54.8]} 7. Bh4 {[%clk 0:02:56.8]} 7... d5 {[%clk 0:02:54.4]} 8. Nc3 {[%clk
0:02:49.1]} 8... d4 {[%clk 0:02:53.1]} 9. Nb5 {[%clk 0:02:48.9]} 9... e5 {[%clk
0:02:50]} 10. c3 {[%clk 0:02:32.7]} 10... a6 {[%clk 0:02:49.7]} 11. Na3 {[%clk
0:02:32.9]} 11... g5 {[%clk 0:02:41.8]} 12. Bg3 {[%clk 0:02:15.3]} 12... Ng6
{[%clk 0:02:41.5]} 13. Nc2 {[%clk 0:02:08.8]} 13... g4 {[%clk 0:02:29.9]} 14.
Nxe5 {[%clk 0:02:01.8]} 14... Ngxe5 {[%clk 0:02:18.1]} 15. cxd4 {[%clk
0:02:01.9]} 15... Ng6 {[%clk 0:02:12.6]} 16. d5 {[%clk 0:01:37.6]} 16... Nce5
{[%clk 0:02:11.9]} 17. Be2 {[%clk 0:01:31.9]} 17... Bg7 {[%clk 0:02:10.8]} 18.
f4 {[%clk 0:01:31.1]} 18... gxf3 {[%clk 0:02:04.5]} 19. gxf3 {[%clk 0:01:31.5]}
19... Qb6 {[%clk 0:01:58.7]} 20. f4 {[%clk 0:01:20.7]} 20... Ng4 {[%clk
0:01:50.1]} 21. e5 {[%clk 0:01:11.4]} 21... h5 {[%clk 0:01:39.4]} 22. h3 {[%clk
0:00:36.1]} 22... h4 {[%clk 0:01:20.2]} 23. Bxg4 {[%clk 0:00:33.3]} 23... hxg3
{[%clk 0:01:08.3]} 24. O-O-O {[%clk 0:00:20.4]} 24... Nxf4 {[%clk 0:01:00.8]}
25. Rhe1 {[%clk 0:00:11.2]} 25... Bxg4 {[%clk 0:00:57.6]} 26. hxg4 {[%clk
0:00:12.1]} 26... Rh2 {[%clk 0:00:57.2]} 27. Qxf4 {[%clk 0:00:08.8]} 27... Rc8
{[%clk 0:00:44.3]} 28. Rd2 {[%clk 0:00:08.5]} 28... Rxd2 {[%clk 0:00:38.1]} 29.
Qxd2 {[%clk 0:00:08.5]} 29... Qg6 {[%clk 0:00:26.3]} 30. Kb1 {[%clk 0:00:08.7]}
30... Bh6 {[%clk 0:00:25.8]} 31. Qe2 {[%clk 0:00:07.5]} 31... Kf8 {[%clk
0:00:20.1]} 32. d6 {[%clk 0:00:07.5]} 32... Re8 {[%clk 0:00:18.8]} 33. Qf3
{[%clk 0:00:05.4]} 33... Qg5 {[%clk 0:00:15]} 34. Qxg3 {[%clk 0:00:04]} 34...
Kg7 {[%clk 0:00:14.8]} 35. Qg1 {[%clk 0:00:03.3]} 35... Qd2 {[%clk 0:00:14.6]}
36. Rd1 {[%clk 0:00:03.4]} 36... Qe2 {[%clk 0:00:13.9]} 37. d7 {[%clk
0:00:04.1]} 37... Rd8 {[%clk 0:00:13.9]} 38. g5 {[%clk 0:00:04.8]} 38... Kh7
{[%clk 0:00:11.3]} 39. gxh6 {[%clk 0:00:05.2]} 39... Qxe5 {[%clk 0:00:11.9]} 40.
Qg7+ {[%clk 0:00:03.8]} 40... Qxg7 {[%clk 0:00:12.1]} 41. hxg7 {[%clk
0:00:04.7]} 41... Kxg7 {[%clk 0:00:12.9]} 42. Ne3 {[%clk 0:00:05.5]} 42... Kf6
{[%clk 0:00:13.3]} 43. Kc2 {[%clk 0:00:06.2]} 43... Ke6 {[%clk 0:00:13.2]} 44.
Kc3 {[%clk 0:00:06.9]} 44... Rxd7 {[%clk 0:00:13.8]} 45. Rxd7 {[%clk 0:00:07.8]}
45... Kxd7 {[%clk 0:00:14.6]} 46. Kd4 {[%clk 0:00:08.6]} 46... Kd6 {[%clk
0:00:15.1]} 47. Nc4+ {[%clk 0:00:08.3]} 47... Kc6 {[%clk 0:00:15.6]} 48. Ne5+
{[%clk 0:00:08.7]} 48... Kb5 {[%clk 0:00:16.2]} 49. Nxf7 {[%clk 0:00:09.2]}
49... a5 {[%clk 0:00:16.6]} 50. Nd6+ {[%clk 0:00:09.7]} 50... Kc6 {[%clk
0:00:16.4]} 51. Ne4 {[%clk 0:00:10.4]} 51... b5 {[%clk 0:00:16.6]} 52. b3 {[%clk
0:00:10.7]} 52... a4 {[%clk 0:00:16.9]} 53. b4 {[%clk 0:00:11]} 53... Kb6 {[%clk
0:00:16.4]} 54. Kd5 {[%clk 0:00:11.6]} 54... Ka6 {[%clk 0:00:16.5]} 55. Kc6
{[%clk 0:00:12.1]} 55... a3 {[%clk 0:00:16.2]} 56. Nc3 {[%clk 0:00:12.4]} 56...
Ka7 {[%clk 0:00:16.3]} 57. Kxb5 {[%clk 0:00:13.1]} 57... Kb7 {[%clk 0:00:16.6]}
58. Ka5 {[%clk 0:00:13.8]} 58... Ka7 {[%clk 0:00:17.5]} 59. b5 {[%clk
0:00:14.4]} 1-0

[Event "Late-Titled-Tuesday-Blitz-June-04-2024"]
[Site "Chess.com"]
[Date "2024.06.04"]
[Round "10"]
[White "Eloist"]
[Black "Mariia89"]
[Result "0-1"]
[WhiteElo "2402"]
[BlackElo "2253"]
[TimeControl "180+1"]
[EndTime "15:55:21 PDT"]
[Termination "Mariia89 won on time"]

1. e4 {[%clk 0:03:00.9]} 1... c6 {[%clk 0:02:59.6]} 2. Nf3 {[%clk 0:03:00.4]}
2... d5 {[%clk 0:03:00.5]} 3. d3 {[%clk 0:03:00.7]} 3... dxe4 {[%clk 0:02:58.9]}
4. dxe4 {[%clk 0:03:00.9]} 4... Qxd1+ {[%clk 0:02:59.8]} 5. Kxd1 {[%clk
0:03:01.1]} 5... Bg4 {[%clk 0:03:00.3]} 6. Be2 {[%clk 0:03:01.2]} 6... Bxf3
{[%clk 0:02:47.4]} 7. Bxf3 {[%clk 0:03:00.6]} 7... e5 {[%clk 0:02:48.3]} 8. Be3
{[%clk 0:02:57.6]} 8... Nd7 {[%clk 0:02:47.8]} 9. Nd2 {[%clk 0:02:45.9]} 9...
Bc5 {[%clk 0:02:48.1]} 10. Ke2 {[%clk 0:02:42.1]} 10... Bxe3 {[%clk 0:02:47.8]}
11. Kxe3 {[%clk 0:02:42]} 11... Nc5 {[%clk 0:02:47.1]} 12. Nc4 {[%clk
0:02:40.5]} 12... f6 {[%clk 0:02:39]} 13. b4 {[%clk 0:02:36.8]} 13... Ne6 {[%clk
0:02:38.4]} 14. Nd6+ {[%clk 0:02:36.4]} 14... Ke7 {[%clk 0:02:34.8]} 15. Nxb7
{[%clk 0:02:29]} 15... Rb8 {[%clk 0:02:20.3]} 16. Na5 {[%clk 0:02:28.2]} 16...
Rb6 {[%clk 0:02:01]} 17. c3 {[%clk 0:02:27.2]} 17... Nh6 {[%clk 0:01:48.7]} 18.
Rhd1 {[%clk 0:02:20.5]} 18... Nf7 {[%clk 0:01:48]} 19. Nc4 {[%clk 0:02:15.4]}
19... Rbb8 {[%clk 0:01:44.1]} 20. a4 {[%clk 0:02:13.4]} 20... a6 {[%clk
0:01:09.4]} 21. Rd2 {[%clk 0:02:12.1]} 21... c5 {[%clk 0:01:09.3]} 22. Rad1
{[%clk 0:02:07.6]} 22... Rhd8 {[%clk 0:01:09.6]} 23. Na5 {[%clk 0:02:01.1]}
23... Rxd2 {[%clk 0:01:03.9]} 24. Rxd2 {[%clk 0:01:57.3]} 24... Rb6 {[%clk
0:01:00.6]} 25. Rd5 {[%clk 0:01:41.4]} 25... cxb4 {[%clk 0:00:54.1]} 26. cxb4
{[%clk 0:01:40.7]} 26... Nd6 {[%clk 0:00:46.9]} 27. Be2 {[%clk 0:00:57.9]} 27...
Nd4 {[%clk 0:00:45.3]} 28. Nc4 {[%clk 0:00:23.7]} 28... Nxc4+ {[%clk 0:00:35.8]}
29. Bxc4 {[%clk 0:00:23.2]} 29... Nc2+ {[%clk 0:00:22.6]} 30. Kd2 {[%clk
0:00:20.5]} 30... Nxb4 {[%clk 0:00:23.1]} 31. Rc5 {[%clk 0:00:18.3]} 31... Nc6
{[%clk 0:00:22.2]} 32. Bd5 {[%clk 0:00:16.8]} 32... Nd4 {[%clk 0:00:17.1]} 33.
Rc7+ {[%clk 0:00:15.9]} 33... Kd6 {[%clk 0:00:17.3]} 34. Rxg7 {[%clk 0:00:15]}
34... Rb2+ {[%clk 0:00:17.7]} 35. Ke3 {[%clk 0:00:13.5]} 35... Rb3+ {[%clk
0:00:12.7]} 36. Kd2 {[%clk 0:00:12.8]} 36... Rb2+ {[%clk 0:00:13]} 37. Kc3
{[%clk 0:00:12.9]} 37... Rxf2 {[%clk 0:00:10.7]} 38. a5 {[%clk 0:00:10.6]} 38...
Kc5 {[%clk 0:00:06.5]} 39. Rc7+ {[%clk 0:00:09.4]} 39... Kb5 {[%clk 0:00:06.8]}
40. Rb7+ {[%clk 0:00:07.8]} 40... Kxa5 {[%clk 0:00:06.9]} 41. g3 {[%clk
0:00:01.9]} 41... Rxh2 {[%clk 0:00:06]} 42. Rxh7 {[%clk 0:00:02]} 42... Rxh7
{[%clk 0:00:05.6]} 0-1

[Event "Late-Titled-Tuesday-Blitz-June-04-2024"]
[Site "Chess.com"]
[Date "2024.06.04"]
[Round "10"]
[White "RealPerangel"]
[Black "frederiksvane"]
[Result "0-1"]
[WhiteElo "2767"]
[BlackElo "2910"]
[TimeControl "180+1"]
[EndTime "15:55:23 PDT"]
[Termination "frederiksvane won by resignation"]

1. e4 {[%clk 0:02:57.9]} 1... c5 {[%clk 0:02:57.6]} 2. g3 {[%clk 0:02:52]} 2...
d5 {[%clk 0:02:54.4]} 3. exd5 {[%clk 0:02:51.5]} 3... Qxd5 {[%clk 0:02:54.4]} 4.
Nf3 {[%clk 0:02:52]} 4... Bg4 {[%clk 0:02:48.9]} 5. Be2 {[%clk 0:02:48.3]} 5...
Nc6 {[%clk 0:02:44.3]} 6. h3 {[%clk 0:02:44.6]} 6... Bf5 {[%clk 0:02:39.9]} 7.
Nc3 {[%clk 0:02:41.9]} 7... Qd7 {[%clk 0:02:39.5]} 8. g4 {[%clk 0:02:42.3]} 8...
Bg6 {[%clk 0:02:39.3]} 9. Bb5 {[%clk 0:02:42.4]} 9... f6 {[%clk 0:02:12.7]} 10.
d4 {[%clk 0:02:41.4]} 10... cxd4 {[%clk 0:02:05.2]} 11. Nxd4 {[%clk 0:02:29.2]}
11... e5 {[%clk 0:02:02.2]} 12. Nxc6 {[%clk 0:02:23.2]} 12... bxc6 {[%clk
0:02:02.3]} 13. Qxd7+ {[%clk 0:02:08.6]} 13... Kxd7 {[%clk 0:02:03.2]} 14. Ba4
{[%clk 0:02:08.1]} 14... Bc5 {[%clk 0:02:00.1]} 15. Be3 {[%clk 0:01:51.1]} 15...
Bxe3 {[%clk 0:02:00.1]} 16. fxe3 {[%clk 0:01:51.3]} 16... Ne7 {[%clk 0:02:00.8]}
17. O-O-O+ {[%clk 0:01:51.3]} 17... Kc7 {[%clk 0:02:01.5]} 18. h4 {[%clk
0:01:30.7]} 18... h5 {[%clk 0:02:01.6]} 19. Rdg1 {[%clk 0:01:30.2]} 19... Rh7
{[%clk 0:01:45.8]} 20. g5 {[%clk 0:01:27.1]} 20... f5 {[%clk 0:01:41.2]} 21. Bb3
{[%clk 0:01:21.3]} 21... Rhh8 {[%clk 0:01:41.6]} 22. Na4 {[%clk 0:01:18.4]}
22... Nd5 {[%clk 0:01:32.9]} 23. Re1 {[%clk 0:01:13.7]} 23... Rae8 {[%clk
0:01:30.6]} 24. Rhf1 {[%clk 0:01:11.7]} 24... Rhf8 {[%clk 0:01:30.2]} 25. Nc5
{[%clk 0:01:10.4]} 25... Kd6 {[%clk 0:01:25.6]} 26. Nb7+ {[%clk 0:01:10.6]}
26... Kc7 {[%clk 0:01:25.9]} 27. Nc5 {[%clk 0:01:11]} 27... Rf7 {[%clk
0:00:47.9]} 28. e4 {[%clk 0:01:03.7]} 28... fxe4 {[%clk 0:00:46.7]} 29. Rxf7+
{[%clk 0:01:03.2]} 29... Bxf7 {[%clk 0:00:47.6]} 30. Nxe4 {[%clk 0:01:02.3]}
30... Bg6 {[%clk 0:00:46.4]} 31. Ng3 {[%clk 0:00:49.4]} 31... Nf4 {[%clk
0:00:45.5]} 32. Rf1 {[%clk 0:00:40.3]} 32... Re7 {[%clk 0:00:43.4]} 33. Rf2
{[%clk 0:00:31.7]} 33... Nh3 {[%clk 0:00:37.2]} 34. Re2 {[%clk 0:00:28]} 34...
e4 {[%clk 0:00:31]} 35. Bc4 {[%clk 0:00:26.8]} 35... Kd6 {[%clk 0:00:27.6]} 36.
Kd2 {[%clk 0:00:23.9]} 36... Nf4 {[%clk 0:00:26.9]} 37. Rh2 {[%clk 0:00:17.5]}
37... e3+ {[%clk 0:00:26.6]} 38. Kc3 {[%clk 0:00:17.4]} 38... a5 {[%clk
0:00:14.8]} 39. a3 {[%clk 0:00:17.4]} 39... Kc5 {[%clk 0:00:11.9]} 40. b4+
{[%clk 0:00:15.5]} 40... axb4+ {[%clk 0:00:12.8]} 41. axb4+ {[%clk 0:00:16]}
41... Kd6 {[%clk 0:00:13.5]} 42. Ne2 {[%clk 0:00:13.9]} 42... Ke5 {[%clk
0:00:04.9]} 43. Nd4 {[%clk 0:00:11.1]} 43... Be4 {[%clk 0:00:05.3]} 44. Nb3
{[%clk 0:00:08.5]} 44... Nd5+ {[%clk 0:00:04.6]} 45. Bxd5 {[%clk 0:00:08.2]}
45... cxd5 {[%clk 0:00:05.4]} 46. Nc5 {[%clk 0:00:07.8]} 46... d4+ {[%clk
0:00:05.4]} 47. Kb2 {[%clk 0:00:07.8]} 47... Kf4 {[%clk 0:00:05]} 48. Nd3+
{[%clk 0:00:07.3]} 48... Bxd3 {[%clk 0:00:05.4]} 49. cxd3 {[%clk 0:00:07.3]}
49... e2 {[%clk 0:00:06]} 0-1

[Event "Late-Titled-Tuesday-Blitz-June-04-2024"]
[Site "Chess.com"]
[Date "2024.06.04"]
[Round "10"]
[White "jucAxx"]
[Black "Bryanl106"]
[Result "1-0"]
[WhiteElo "2471"]
[BlackElo "2712"]
[TimeControl "180+1"]
[EndTime "15:55:24 PDT"]
[Termination "jucAxx won by resignation"]

1. e4 {[%clk 0:03:00.9]} 1... e5 {[%clk 0:02:59.9]} 2. Nc3 {[%clk 0:03:00.7]}
2... Nc6 {[%clk 0:03:00.6]} 3. Bc4 {[%clk 0:03:00.6]} 3... Nf6 {[%clk
0:03:00.4]} 4. d3 {[%clk 0:03:00.7]} 4... Na5 {[%clk 0:02:59.9]} 5. Bb3 {[%clk
0:02:59.5]} 5... Bb4 {[%clk 0:02:57.9]} 6. Nf3 {[%clk 0:02:59.1]} 6... d6 {[%clk
0:02:56.5]} 7. h3 {[%clk 0:02:59.1]} 7... O-O {[%clk 0:02:56.2]} 8. O-O {[%clk
0:02:59.5]} 8... h6 {[%clk 0:02:56.4]} 9. Nd5 {[%clk 0:02:59.5]} 9... Nxb3
{[%clk 0:02:55.9]} 10. axb3 {[%clk 0:02:59.1]} 10... Bc5 {[%clk 0:02:53.5]} 11.
b4 {[%clk 0:02:58.4]} 11... Nxd5 {[%clk 0:02:49.6]} 12. bxc5 {[%clk 0:02:57.4]}
12... Nb4 {[%clk 0:02:45.2]} 13. cxd6 {[%clk 0:02:54.2]} 13... cxd6 {[%clk
0:02:46.1]} 14. Bd2 {[%clk 0:02:53.3]} 14... Nc6 {[%clk 0:02:46]} 15. Re1 {[%clk
0:02:51.3]} 15... f5 {[%clk 0:02:45.9]} 16. exf5 {[%clk 0:02:51.1]} 16... Bxf5
{[%clk 0:02:46.8]} 17. Bc3 {[%clk 0:02:50.5]} 17... Qf6 {[%clk 0:02:46.2]} 18.
d4 {[%clk 0:02:49.6]} 18... Bxh3 {[%clk 0:02:37.4]} 19. dxe5 {[%clk 0:02:48.9]}
19... Qg6 {[%clk 0:02:19.4]} 20. Nh4 {[%clk 0:02:48.8]} 20... Qg5 {[%clk
0:02:17.5]} 21. exd6 {[%clk 0:02:08.6]} 21... Qxh4 {[%clk 0:02:14.8]} 22. Qd5+
{[%clk 0:01:57.7]} 22... Kh8 {[%clk 0:02:13]} 23. gxh3 {[%clk 0:01:58.2]} 23...
Qxf2+ {[%clk 0:01:56]} 24. Kh1 {[%clk 0:01:56.2]} 24... Rf3 {[%clk 0:01:46.2]}
25. Qh5 {[%clk 0:01:42.6]} 25... Rg3 {[%clk 0:01:11.3]} 26. Qxh6+ {[%clk
0:00:20.4]} 26... Kg8 {[%clk 0:01:08.9]} 27. Qe6+ {[%clk 0:00:20.9]} 27... Kh7
{[%clk 0:01:08.4]} 28. Qe4+ {[%clk 0:00:19]} 28... Kh8 {[%clk 0:01:08.7]} 29.
Qh4+ {[%clk 0:00:17.8]} 29... Kg8 {[%clk 0:01:08.9]} 30. Qc4+ {[%clk 0:00:15.3]}
30... Kh7 {[%clk 0:00:29.3]} 31. Qe4+ {[%clk 0:00:12.9]} 31... Kg8 {[%clk
0:00:26.4]} 32. Qc4+ {[%clk 0:00:11.6]} 32... Qf7 {[%clk 0:00:27]} 33. Qxf7+
{[%clk 0:00:10.2]} 33... Kxf7 {[%clk 0:00:27.9]} 34. Kh2 {[%clk 0:00:10.7]}
34... Rg6 {[%clk 0:00:28]} 35. d7 {[%clk 0:00:10.2]} 35... Rd8 {[%clk
0:00:28.6]} 36. Rf1+ {[%clk 0:00:10.5]} 36... Ke6 {[%clk 0:00:27.1]} 37. Rad1
{[%clk 0:00:10.6]} 37... Rg5 {[%clk 0:00:18.7]} 38. Rfe1+ {[%clk 0:00:10.5]}
38... Kf7 {[%clk 0:00:18.2]} 39. Rd3 {[%clk 0:00:05.8]} 39... Nb8 {[%clk
0:00:16]} 40. Red1 {[%clk 0:00:04.6]} 40... Rf5 {[%clk 0:00:13.7]} 41. Kg3
{[%clk 0:00:04.2]} 41... g6 {[%clk 0:00:10.4]} 42. Bd2 {[%clk 0:00:03.7]} 42...
b6 {[%clk 0:00:09.3]} 43. Bf4 {[%clk 0:00:03.2]} 43... Na6 {[%clk 0:00:07.2]}
44. h4 {[%clk 0:00:03.5]} 44... Nc5 {[%clk 0:00:05.5]} 45. Rd6 {[%clk
0:00:02.4]} 45... Nxd7 {[%clk 0:00:02.9]} 46. Bg5 {[%clk 0:00:01.8]} 46... Rxg5+
{[%clk 0:00:02.1]} 47. hxg5 {[%clk 0:00:02.6]} 47... Ke7 {[%clk 0:00:02.9]} 48.
Rxg6 {[%clk 0:00:01.3]} 48... Rc8 {[%clk 0:00:03.4]} 49. Rg7+ {[%clk 0:00:01.1]}
49... Kf8 {[%clk 0:00:04.3]} 50. Rgxd7 {[%clk 0:00:01.1]} 1-0